Cogmind - Beta 17 @@@ ROGUE MODE // 2026.07.12 @ 17:52:36 Player: osman sinnoks Result: Destroyed by D-53 Grenadier with Mini Grenade Launcher Performance ------------- Evolutions (0) 0 Regions Visited (4) 800 Robots Destroyed (32) 160 Value Destroyed (629) 629 Prototype IDs (0) 0 Alien Tech Used (0) 0 Bonus (12) 12 TOTAL SCORE: 1601 Bonus ------- Follower Combat Kills 25 Friendly Fire -13 Cogmind --------- Core Integrity 0/250 Matter 290/300 Energy 250/250 System Corruption 4% Temperature Cool (0) Movement Treading (240) Ox1 Location -9/Mines Parts ------- > --- POWER (1) -------- Ion Engine > --- PROPULSION (2) --- Light Treads Light Treads > --- UTILITY (2) ------ High-capacity Storage Unit Sensor Array > --- WEAPON (2) ------- Particle Gun Assault Rifle > --- INVENTORY (20) --- Light Ion Engine Light Ion Engine Light Nuclear Core Aluminum Leg Aluminum Leg Aluminum Leg Aluminum Leg Compact Matter Pod (150) Light Armor Plating Light Armor Plating Light Armor Plating Light Armor Plating Particle Gun Particle Gun Light Assault Rifle Peak State ------------ > --- POWER ------------ Ion Engine > --- PROPULSION ------- Light Treads Light Treads > --- UTILITY ---------- Small Storage Unit Improved Terrain Scanner > --- WEAPON ----------- Assault Rifle Light Cannon > --- INVENTORY -------- Light Ion Engine Light Nuclear Core High-capacity Storage Unit Medium Matter Pod Light Armor Plating Particle Gun Light Assault Rifle [Rating: 10] Favorites ----------- Power Ion Engine Engine Ion Engine Propulsion Light Treads Treads Light Treads Utility High-capacity Storage Unit Device Sensor Array Storage High-capacity Storage Unit Weapon Assault Rifle Energy Gun Particle Gun Ballistic Gun Assault Rifle Ballistic Cannon Light Cannon Build | -11 -10 -10 -10 -9 ------- Run | Yrd Mat Min Exi Min Slots Evolved . | . . . . . Power . | . . . . . Propulsion . | . . . . . Utility . | . . . . . Weapon . | . . . . . Parts Attached 13 | 6 6 1 . . Power 1 | . 1 . . . Engine 1 | . 1 . . . Core . | . . . . . Reactor . | . . . . . Propulsion 3 | 2 1 . . . Treads 3 | 2 1 . . . Leg . | . . . . . Wheel . | . . . . . Hover . | . . . . . Flight . | . . . . . Utility 4 | 2 2 . . . Device 2 | 1 1 . . . Storage 2 | 1 1 . . . Processor . | . . . . . Hackware . | . . . . . Protection . | . . . . . Artifact . | . . . . . Weapon 5 | 2 2 1 . . Energy Gun 1 | . . 1 . . Energy Cannon . | . . . . . Ballistic Gun 3 | 2 1 . . . Ballistic Cannon 1 | . 1 . . . Launcher . | . . . . . Special Weapon . | . . . . . Impact Weapon . | . . . . . Slashing Weapon . | . . . . . Piercing Weapon . | . . . . . Special Melee Weapon . | . . . . . Unidentified Prototypes . | . . . . . Parts Lost 3 | . 1 2 . . Power . | . . . . . Propulsion 1 | . . 1 . . Utility . | . . . . . Weapon 2 | . 1 1 . . Highest Loss Streak 2 | . 1 2 . . To Critical Strikes . | . . . . . Average Backups 12 | . 10 15 15 15 Power 2 | . 1 2 3 3 Propulsion 3 | . 2 4 4 4 Utility 4 | . 3 5 5 5 Weapon 2 | . 2 2 3 3 Tool/Special . | . . . . . Unused Backups 17 | . 1 . . 16 Power 3 | . . . . 3 Propulsion 4 | . . . . 4 Utility 7 | . 1 . . 6 Weapon 3 | . . . . 3 Tool/Special . | . . . . . Average Slot Usage (%) 99 | . 98 100 100 100 Engine 13 | . 13 14 14 14 Treads 28 | . 28 28 28 28 Device 13 | . 13 14 14 14 Storage 14 | . 14 14 14 14 Energy Gun 7 | . . 11 14 14 Ballistic Gun 15 | . 17 14 14 14 Ballistic Cannon 5 | . 10 2 . . Peak Build Rating 10 | 8 10 9 9 10 Average Rating 8 | 4 8 8 9 9 On Entrance 6 | . 8 8 9 9 Avg Prop Armor Cover (%) . | . . . . . Naked Turns . | . . . . . Heaviest Build 51 | 10 51 51 51 51 Greatest Support 40 | 40 40 40 40 40 Greatest Overweight (x) 1 | . 1 1 1 1 Average Overweight (x) . | . . 1 1 1 Largest Inventory Capacity 20 | 8 20 20 20 20 Average Capacity 17 | 7 16 20 20 20 Most Carried 16 | 3 15 16 15 16 Average Carried 12 | . 10 15 15 15 Final Capacity 20 | 8 20 20 20 20 Final Carried 15 | 1 15 15 15 15 Class Distribution -------------------- 100% | Mutant Dominant Class ---------------- Mutant | -10/Materials Mutant | -10/Mines Mutant | -10/Exiles Mutant | -9/Mines Resources | -11 -10 -10 -10 -9 ----------- Run | Yrd Mat Min Exi Min Matter Collected 969 | 302 454 181 . 32 Remotely . | . . . . . Salvage Created 1049 | 200 636 213 . . Parts 68 | 15 35 18 . . Haulers Intercepted 1 | . 1 . . . Recyclers Shooed 2 | 1 1 . . . Parts Field Recycled . | . . . . . Retrieved Matter . | . . . . . Parts Self-Destructed . | . . . . . Prevented . | . . . . . Parts Restored . | . . . . . Kills | -11 -10 -10 -10 -9 ------- Run | Yrd Mat Min Exi Min Combat Hostiles Destroyed 20 | . 11 9 . . Guns 15 | . 8 7 . . Cannons 5 | . 3 2 . . Classes Destroyed 7 | 2 5 . . . Tunneler 6 | 5 1 . . . Hauler 1 | . 1 . . . Recycler 3 | 1 2 . . . Watcher 2 | . 2 . . . Swarmer 9 | . 3 6 . . Grunt 10 | . 7 3 . . Subdweller 1 | . 1 . . . Best Kill Streak 6 | 6 4 5 . . Combat Bots Only 5 | . 3 5 . . Max Kills in Single Turn 2 | 1 2 1 . . Gunslinging . | . . . . . Exploded . | . . . . . Melee . | . . . . . Uniques/NPCs Destroyed . | . . . . . Combat | -11 -10 -10 -10 -9 -------- Run | Yrd Mat Min Exi Min Hostile Shots Fired 115 | . 62 52 . 1 Missed 21 | . 8 13 . . Hits 94 | . 54 39 . 1 Projectile 94 | . 54 39 . 1 AOE 1 | . . . . 1 Critical Strikes 1 | . 1 . . . Damage Taken 1115 | . 677 384 . 54 Core 260 | . 139 67 . 54 Absorbed by Shields . | . . . . . Core Remaining (%) 100 | 100 . . . . Volleys Fired 68 | 7 39 22 . . Largest 2 | 2 2 2 . . Hottest 85 | 40 50 85 . . Shots Fired 141 | 14 78 47 2 . Gun 118 | 14 69 33 2 . Cannon 23 | . 9 14 . . Launcher . | . . . . . Special . | . . . . . Kinetic 130 | 14 78 37 1 . Thermal 11 | . . 10 1 . Explosive . | . . . . . Electromagnetic . | . . . . . Robot Hit Streak 7 | 4 7 4 . . Robot Miss Streak 5 | 1 5 5 . . Penetration Max . | . . . . . Secondary Targets . | . . . . . Shots Hit Robots 80 | 8 50 22 . . Core Hits 42 | 7 23 12 . . Critical Kills 1 | . 1 . . . Critical Parts Destroyed . | . . . . . Critical Strikes 1 | . 1 . . . Destroy 1 | . 1 . . . Melee Attacks . | . . . . . Impact . | . . . . . Slashing . | . . . . . Piercing . | . . . . . Sneak Attacks . | . . . . . Combat Hostiles . | . . . . . Follow-up Attacks . | . . . . . Damage Inflicted 1176 | 110 731 335 . . Guns 965 | 110 602 253 . . Cannons 186 | . 118 68 . . Explosions . | . . . . . Melee . | . . . . . Ramming 25 | . 11 14 . . Kinetic 1060 | 110 720 230 . . Thermal 91 | . . 91 . . Explosive . | . . . . . Electromagnetic . | . . . . . Impact . | . . . . . Slashing . | . . . . . Piercing . | . . . . . Highest Corruption 4 | . 4 4 4 4 Average Corruption 3 | . 2 4 4 4 Corruption Purged . | . . . . . Corruption Blocked . | . . . . . Effects 50 | . 7 30 11 2 Message Errors 9 | . 2 6 1 . Matter Fused 11 | . 2 6 2 1 Heat Flow Errors 4 | . . 2 2 . Energy Discharges 5 | . 3 1 1 . Data Loss (minor) 9 | . . 8 . 1 Data Loss (major) 5 | . . 3 2 . Misfires 5 | . . 3 2 . Alerts 2 | . . 1 1 . Overload Shots . | . . . . . Overflow Damage . | . . . . . Projectiles . | . . . . . Explosions . | . . . . . Melee . | . . . . . Knockbacks 2 | . 1 1 . . Impact . | . . . . . Kinetic 2 | . 1 1 . . Secondary . | . . . . . Self-Inflicted Damage . | . . . . . Shots . | . . . . . Rammed 4 | . 1 3 . . Targets Rammed 4 | . 1 3 . . Kicked . | . . . . . Crushed . | . . . . . Highest Temperature 260 | . 27 256 260 . Average Temperature 64 | . 6 76 101 . Received Heat Transfer 447 | . 342 105 . . Siege Activations . | . . . . . Martial Activations . | . . . . . Shielding Activations . | . . . . . Robots Disrupted . | . . . . . Combat Hostiles . | . . . . . Robots Corrupted . | . . . . . Combat Hostiles . | . . . . . Parts Fried . | . . . . . Impact Corruptions . | . . . . . Robots Melted . | . . . . . Combat Hostiles . | . . . . . Parts Melted 1 | . 1 . . . Heat Transferred 222 | . . 222 . . Parts Sabotaged . | . . . . . Parts Stolen . | . . . . . Parts Stripped . | . . . . . Power Chain Reactions . | . . . . . Alert | -11 -10 -10 -10 -9 ------- Run | Yrd Mat Min Exi Min Maximum Alert Level . | . . . . . Low Security (%) 100 | 100 100 100 . 100 Level 1 . | . . . . . Level 2 . | . . . . . Level 3 . | . . . . . Level 4 . | . . . . . Level 5 . | . . . . . High Security . | . . . . . Max Security . | . . . . . Peak Influence 100 | 20 100 80 . . Initial . | . . . . . Average 14 | 3 16 15 . . Influence Increases 569 | 30 281 258 . . Destroy 0b10 Robot/C 400 | . 200 200 . . Destroy 0b10 Robot/NC 60 | 30 30 . . . Destroy Leader 86 | . 46 40 . . Allied During Kill 3 | . . 3 . . Successful Hack 5 | . 5 . . . Lose Combat Pursuer 15 | . . 15 . . Influence Decreases 569 | 30 281 258 . . Time Decay 539 | 30 271 238 . . Lost Part 30 | . 10 20 . . Squads Dispatched . | . . . . . Investigation . | . . . . . Extermination . | . . . . . Reinforcement . | . . . . . Assault . | . . . . . Garrison . | . . . . . Intercept . | . . . . . Searches Triggered . | . . . . . Construction Impeded . | . . . . . Haulers Reinforced . | . . . . . Active Scanning Responses . | . . . . . Cargo Convoy Interrupts . | . . . . . Stealth | -11 -10 -10 -10 -9 --------- Run | Yrd Mat Min Exi Min Distress Signals . | . . . . . Communications Jammed . | . . . . . Distress Signals . | . . . . . Times Spotted 28 | . 16 10 . 2 Peak Tracking Total 3 | . 3 3 . 2 Tactical Retreats 1 | . . 1 . . Traps | -11 -10 -10 -10 -9 ------- Run | Yrd Mat Min Exi Min Traps Triggered 3 | . 3 . . . Indirectly . | . . . . . Trap Hack Attempts . | . . . . . Triggered . | . . . . . Disarmed . | . . . . . Reprogrammed . | . . . . . Reused . | . . . . . Traps Extracted . | . . . . . Installed . | . . . . . Triggered . | . . . . . Machines | -11 -10 -10 -10 -9 ---------- Run | Yrd Mat Min Exi Min Machines Disabled . | . . . . . Max in Single Turn . | . . . . . Machines Repaired . | . . . . . Machines Dismantled . | . . . . . Machines Sabotaged . | . . . . . Overloaded Fab Kills . | . . . . . Hacking | -11 -10 -10 -10 -9 --------- Run | Yrd Mat Min Exi Min Machines Accessed 2 | . 2 . . . Terminals 2 | . 2 . . . Fabricators . | . . . . . Repair Stations . | . . . . . Recycling Units . | . . . . . Scanalyzers . | . . . . . Garrison Access . | . . . . . Total Hacks 2 | . 2 . . . Successful 2 | . 2 . . . Failed . | . . . . . Catastrophic . | . . . . . Database Lockouts . | . . . . . Manual . | . . . . . Terminals 2 | . 2 . . . Fabricators . | . . . . . Repair Stations . | . . . . . Recycling Units . | . . . . . Scanalyzers . | . . . . . Garrison Access . | . . . . . Terminal Hacks 2 | . 2 . . . Alert Level 1 | . 1 . . . Hauler Manifests 1 | . 1 . . . Fabricator Hacks . | . . . . . Repair Station Hacks . | . . . . . Recycling Unit Hacks . | . . . . . Scanalyzer . | . . . . . Garrison Access Hacks . | . . . . . Unauthorized Hacks . | . . . . . Terminals . | . . . . . Fabricators . | . . . . . Repair Stations . | . . . . . Recycling Units . | . . . . . Scanalyzers . | . . . . . Garrison Access . | . . . . . Data Cores Recovered . | . . . . . Used . | . . . . . Hacking Detections 1 | . 1 . . . Full Trace Events . | . . . . . Feedback Events . | . . . . . Feedback Blocked . | . . . . . Robot Schematics Acquired . | . . . . . Robots Built . | . . . . . Authchips . | . . . . . Time . | . . . . . Total Robot Build Rating . | . . . . . Part Schematics Acquired . | . . . . . Parts Built . | . . . . . Authchips . | . . . . . Time . | . . . . . Total Part Build Rating . | . . . . . Part Studies Acquired . | . . . . . Parts Repaired . | . . . . . Time . | . . . . . Parts Recycled . | . . . . . Recycled Matter . | . . . . . Retrieved Matter . | . . . . . Retrieved Components . | . . . . . Parts Scanalyzed . | . . . . . Part Schematics Acquired . | . . . . . Parts Damaged . | . . . . . Bothacking | -11 -10 -10 -10 -9 ------------ Run | Yrd Mat Min Exi Min Used RIF Installer . | . . . . . Robots Hacked . | . . . . . Non-combat . | . . . . . Combat . | . . . . . Robot Hacks Applied . | . . . . . Relay Couplers Released . | . . . . . Fabnet Peak Effective % . | . . . . . Robots Rewired . | . . . . . Allies Hacked . | . . . . . Hacks Repelled . | . . . . . Allies | -11 -10 -10 -10 -9 -------- Run | Yrd Mat Min Exi Min Total Allies 1 | . . 1 . . Largest Group 1 | . . 1 . . Highest-Rated Group 31 | . . 31 . . Highest-Rated Ally 31 | . . 31 . . Total Orders . | . . . . . Ally Attacks 1 | . . 1 . . Total Damage 20 | . . 20 . . Kills 1 | . . 1 . . Allies Corrupted . | . . . . . Allies Melted . | . . . . . Intel | -11 -10 -10 -10 -9 ------- Run | Yrd Mat Min Exi Min Active Infowar (turns) 3334 | 32 1401 1172 562 167 Sensors 2366 | . 465 1172 562 167 Terrain 968 | 32 936 . . . Robot Analysis Total . | . . . . . Derelict Logs Recovered 1 | . . 1 . . Drone Launches . | . . . . . Drone Recoveries . | . . . . . Exploration | -11 -10 -10 -10 -9 ------------- Run | Yrd Mat Min Exi Min Turns Passed 3519 | 179 1439 1172 562 167 Spaces Moved 1422 | 90 580 448 235 69 Core 12 | 12 . . . . Treads 1410 | 78 580 448 235 69 Legs . | . . . . . Wheels . | . . . . . Hover . | . . . . . Flight . | . . . . . Fastest Speed 50 | 50 160 240 240 240 Average Speed 223 | 145 213 240 240 240 Slowest Speed 240 | 160 240 240 240 240 Overloaded Moves . | . . . . . Propulsion Burnouts . | . . . . . Robots Hopped . | . . . . . Potential Cave-ins . | . . . . . Cave-ins Triggered . | . . . . . Exploration Rate (%) 55 | 4 95 91 61 24 Regions Visited 4 Branch Regions 3 Pre-discovered Areas . | . . . . . Known Exits Taken . | . . . . . Unknown Exits Taken 4 | 1 1 1 1 . Scrap Searched 3 | . . 3 . . Spaces Dug . | . . . . . Terrain Destroyed . | . . . . . Melee . | . . . . . Projectile . | . . . . . AOE . | . . . . . Terrain Rammed . | . . . . . Walls Destroyed . | . . . . . Machines Disabled . | . . . . . Actions | -11 -10 -10 -10 -9 --------- Run | Yrd Mat Min Exi Min Total 1633 | 124 706 498 234 71 Wait 94 | 15 57 22 . . Move 1418 | 89 579 447 234 69 Hop . | . . . . . Pick Up 30 | 7 20 2 . 1 Fast Attach . | . . . . . Attach 11 | 6 3 2 . . Detach . | . . . . . Swap 3 | . 3 . . . Drop 5 | . 4 . . 1 Fire 68 | 7 39 22 . . Melee . | . . . . . Ram . | . . . . . Kick . | . . . . . Crush 4 | . 1 3 . . Escape Stasis . | . . . . . Rewire . | . . . . . Trap . | . . . . . Miscellaneous . | . . . . . Route ------- -11/Scrapyard -10/Materials (discovered 5 exits: [*Mat x3] / [*Min] / [*Sub]) -10/Mines (discovered 4 exits: [*Mat x2] / *Exi / [*Sub]) -10/Exiles -9/Mines History --------- Turn | Location | Event 5 | -11/Scrapyard | Discovered new exit (range 15) 180 | -11/Scrapyard | Entered Materials 311 | -10/Materials | Build established: Mutant 788 | -10/Materials | Discovered new exit (range 13) 880 | -10/Materials | Derelicts attacked the area 986 | -10/Materials | Discovered new exit (range 10) 1213 | -10/Materials | Core integrity fell below 50% 1235 | -10/Materials | Discovered new exit (range 16) 1427 | -10/Materials | Discovered new exit (range 16) 1605 | -10/Materials | Discovered new exit (range 6) 1619 | -10/Materials | Entered Mines 1930 | -10/Mines | Learned 2 Materials zone layouts 1973 | -10/Mines | Discovered new exit (range 7) 1981 | -10/Mines | Received a Mining Laser from a helpful Derelict 2115 | -10/Mines | Core integrity fell below 20% 2333 | -10/Mines | Discovered new exit (range 11) 2763 | -10/Mines | Discovered new exit (range 15) 2782 | -10/Mines | Deemed a non-threat by the Exiles lab entrance 2782 | -10/Mines | Discovered new exit (range 5) 2791 | -10/Mines | Entered Exiles 2791 | -10/Exiles | Found Exiles lab abandoned 3332 | -10/Exiles | Discovered new exit (range 10) 3353 | -10/Exiles | Entered Mines 3358 | -9/Mines | Met a Derelict bent on vengeance 3507 | -9/Mines | Assembled infested the area 3512 | -9/Mines | Assisted by a Guerilla fighting off Assembled 3520 | -9/Mines | Destroyed by D-53 Grenadier with Mini Grenade Launcher Last Messages --------------- 03512_ A derelict emerges from the shadows: "You need to get out of here! I've been tracking a group of Assembled to figure out where they're coming from, and they're closing on this area, come on!" 03513_ B9-70F(h): "I'll hold them off! Go on ahead or try to find another way!" 03513_ HV Slug penetrates C-45 Heavy ARC. 03514_ C-45 Heavy ARC bursts open, deploying its payload. 03514_ D-53 Grenadier unfolds itself. 03515_ U-05 Engineer destroyed. 03515_ HV Slug penetrates D-53 Grenadier. 03515_ D-53 Grenadier suffers critical hit (Destroy). 03515_ D-53 Grenadier knocked back. 03517_ D-53 Grenadier suffers critical hit (Destroy). 03517_ D-53 Grenadier knocked back. 03518_ B9-70F(h) destroyed. Map ----- +----------------------------------------------------+ | ????????????????????????????????????????? | | ????????????????????????????????????????? | | ????????????????????????????????????????? | | ????????????????????????????????????????? | | ????????????????????????????????????????? | | ????????????????????????????????????????? | | ????????????????????????????????????????? | | ????????????????????????????????????????? | | ????????????????????????????????????????? | | ????????????????????????????????????????? | | ????????????????????????????????????????? | | ????????????????????????????????????????? | | ?????????????????????????#??????????????? | | ???????????????????????? ##?????????????? | | ???????????????????????# ??????????????? | | ????####?????????????## d#??????????????? | | ???## ##??????????## %##?????????????? | | ??## ##????????? #?????????????? | | ??# ########## d #?????????????? | | ??# !%* #??????????????? | | ??## #??????????????? | | ???## ######## #??????????????? | | ????## ##???????# #??????????????? | | ?????# #???????## * #?????????????????? | | ?????# #?????### ##?????????????????? | | ?????# #?????# @ #?????????????????? | | ?????# #????# #??????????????? | | ?????# #????## #?????????????? | | ????## #?????# ##?????????????? | | ????# ##???# ###??????????????? | | ????# #??# ##????????????????? | | ????# ### #?????????????????? | | ????# ##?????????????????? | | ???## #####??????????????????? | | ??## ##??????????????????????? | | ??# ###?????????????????????? | | ??# #?????????????????????? | | ??## #?????????????????????? | | ???### # ? #????????????????? | | ?????## ## ######### ?????????????????? | | ??????# #?###??????????????????????????? | | ??????# #??????????????????????????????? | | ??????# ##?????????????????????????????? | | ??????# ##????????????????????????????? | | ??????# #??#?????????????????????????? | | ??????# #?? ?????????????????????????? | | ??????# #?# #????????????????????????? | | ?????## #?# #????????????????????????? | | ?????# ##?# #????????????????????????? | | ?????# ##??# #????????????????????????? | +----------------------------------------------------+ Best States ------------- Heat Dissipation 25 Energy Generation 10 Energy Capacity 250 Matter Stores 300 Matter Capacity 300 Sight Range 16 Robot Scan Range 14 Terrain Scan Range 16 Terrain Scan Density 10 Evasion (%) 50 Recoil Reduction 2 Item Schematics ----------------- None Robot Schematics ------------------ None Fabricated ------------ Nothing Repaired ---------- Nothing Studied --------- None Alien Tech Used ----------------- None Achievements -------------- None Challenges ------------ None Game ------ Seed ScrapoidDroneManipulator Manual? 0 Play Time 00:15:48 Cumulative 49.8 hours Start 2026.07.12 @ 15:37:36 End 2026.07.12 @ 17:52:36 Sessions 3 Manual Loads 0 Difficulty Rogue Special Mode None Game No. 96 Rogue 96 Adventurer 0 Explorer 0 Win Type - Total 0 Types 0/0/0/0/0/0/0/0/0/0 Lore% 28 Gallery% 33 Achievement% 27 Wizard Run 0 Options --------- Layout 2 ASCII 0 Keyboard 0 Movement Mouse Keybinds 0 Fullscreen 1 Font 48/Smallcaps Map View 50x44 Zoom Use 0% Tactical HUD 1 Map Filters NONE Filters NONE Steam 1 RUN: 5650b954-f916-4913-840a-f2fb919c4d10